[Event "Early-Titled-Tuesday-Blitz-April-16-2024"]
[Site "Chess.com"]
[Date "2024.04.16"]
[Round "5"]
[White "kleber2007"]
[Black "GoltsevDmitry2000"]
[Result "1/2-1/2"]
[WhiteElo "2592"]
[BlackElo "2776"]
[TimeControl "180+1"]
[EndTime "8:57:54 PDT"]
[Termination "Game drawn by stalemate"]

1. Nf3 {[%clk 0:03:00.9]} 1... d5 {[%clk 0:02:47.7]} 2. g3 {[%clk 0:03:00.7]}
2... c6 {[%clk 0:02:48.2]} 3. Bg2 {[%clk 0:03:01.1]} 3... Nf6 {[%clk 0:02:49.1]}
4. c4 {[%clk 0:03:00.9]} 4... g6 {[%clk 0:02:49.8]} 5. b3 {[%clk 0:03:00.6]}
5... Bg7 {[%clk 0:02:50.1]} 6. Bb2 {[%clk 0:03:01.2]} 6... O-O {[%clk
0:02:50.5]} 7. O-O {[%clk 0:03:01]} 7... Nbd7 {[%clk 0:02:50.3]} 8. Qc2 {[%clk
0:03:00.1]} 8... e6 {[%clk 0:02:50.5]} 9. d3 {[%clk 0:02:58.9]} 9... Re8 {[%clk
0:02:50.8]} 10. Nbd2 {[%clk 0:02:58.7]} 10... Qe7 {[%clk 0:02:50.6]} 11. e4
{[%clk 0:02:58.8]} 11... dxe4 {[%clk 0:02:50.6]} 12. dxe4 {[%clk 0:02:58.5]}
12... e5 {[%clk 0:02:51]} 13. a3 {[%clk 0:02:55.5]} 13... a5 {[%clk 0:02:48.4]}
14. Rac1 {[%clk 0:02:53.7]} 14... Nh5 {[%clk 0:02:39.8]} 15. c5 {[%clk
0:02:52.8]} 15... Nf8 {[%clk 0:02:29]} 16. b4 {[%clk 0:02:51.6]} 16... axb4
{[%clk 0:02:27]} 17. axb4 {[%clk 0:02:52.5]} 17... f6 {[%clk 0:02:25.9]} 18. Nc4
{[%clk 0:02:51.5]} 18... Rd8 {[%clk 0:02:22.4]} 19. Nd6 {[%clk 0:02:45.1]} 19...
Be6 {[%clk 0:02:22.5]} 20. Nd2 {[%clk 0:02:42.3]} 20... b5 {[%clk 0:02:20.8]}
21. Ra1 {[%clk 0:02:38.9]} 21... Bh6 {[%clk 0:02:16.8]} 22. Bc3 {[%clk
0:02:30.1]} 22... Ng7 {[%clk 0:02:00.9]} 23. Qb2 {[%clk 0:02:21.6]} 23... Ne8
{[%clk 0:01:47.1]} 24. f4 {[%clk 0:02:21.1]} 24... Nxd6 {[%clk 0:01:38.3]} 25.
Rxa8 {[%clk 0:02:20.2]} 25... Rxa8 {[%clk 0:01:36.3]} 26. cxd6 {[%clk
0:02:21.1]} 26... Qxd6 {[%clk 0:01:37.1]} 27. fxe5 {[%clk 0:02:18.2]} 27... fxe5
{[%clk 0:01:38]} 28. Nf3 {[%clk 0:02:17.7]} 28... Ra2 {[%clk 0:01:34.1]} 29.
Bxe5 {[%clk 0:02:04.9]} 29... Qd3 {[%clk 0:01:27.9]} 30. Qc3 {[%clk 0:01:47.8]}
30... Qe2 {[%clk 0:01:13.8]} 31. Nh4 {[%clk 0:01:24.6]} 31... Qe3+ {[%clk
0:00:53.1]} 32. Qxe3 {[%clk 0:01:18.6]} 32... Bxe3+ {[%clk 0:00:54]} 33. Kh1
{[%clk 0:01:19.5]} 33... Bc4 {[%clk 0:00:53.3]} 34. Rd1 {[%clk 0:01:12.6]} 34...
Be2 {[%clk 0:00:34.6]} 35. Re1 {[%clk 0:00:46.1]} 35... Bf2 {[%clk 0:00:25.9]}
36. Rc1 {[%clk 0:00:34.9]} 36... Bc4 {[%clk 0:00:25.6]} 37. Bf1 {[%clk
0:00:26.6]} 37... Be3 {[%clk 0:00:25.3]} 38. Rxc4 {[%clk 0:00:21.6]} 38... Rf2
{[%clk 0:00:19.9]} 39. Bd3 {[%clk 0:00:16.7]} 39... bxc4 {[%clk 0:00:14.8]} 40.
Bxc4+ {[%clk 0:00:16.8]} 40... Rf7 {[%clk 0:00:15.7]} 41. Nf3 {[%clk 0:00:14.9]}
41... Nd7 {[%clk 0:00:12.2]} 42. Bd6 {[%clk 0:00:13.1]} 42... Nb6 {[%clk
0:00:11]} 43. Be6 {[%clk 0:00:09.3]} 43... Kg7 {[%clk 0:00:10.5]} 44. Be5+
{[%clk 0:00:07.8]} 44... Rf6 {[%clk 0:00:08.9]} 45. Bxf6+ {[%clk 0:00:04.7]}
45... Kxf6 {[%clk 0:00:09.8]} 46. Bg4 {[%clk 0:00:04.6]} 46... Nc4 {[%clk
0:00:09.1]} 47. e5+ {[%clk 0:00:05.5]} 47... Nxe5 {[%clk 0:00:09.2]} 48. Nxe5
{[%clk 0:00:06.3]} 48... Kxe5 {[%clk 0:00:10.1]} 49. Bf3 {[%clk 0:00:07]} 49...
Kd6 {[%clk 0:00:10.7]} 50. Be2 {[%clk 0:00:06.7]} 50... Bd2 {[%clk 0:00:11]} 51.
b5 {[%clk 0:00:06.2]} 51... c5 {[%clk 0:00:11.1]} 52. Bc4 {[%clk 0:00:06.4]}
52... Ke5 {[%clk 0:00:11.2]} 53. Kg2 {[%clk 0:00:06.9]} 53... Kd4 {[%clk
0:00:11.5]} 54. Be2 {[%clk 0:00:04.3]} 54... Ba5 {[%clk 0:00:04.8]} 55. Kf3
{[%clk 0:00:04.1]} 55... Bb6 {[%clk 0:00:05.7]} 56. Bd1 {[%clk 0:00:04.4]} 56...
c4 {[%clk 0:00:06.6]} 57. Bc2 {[%clk 0:00:04.3]} 57... Kc3 {[%clk 0:00:07.5]}
58. Be4 {[%clk 0:00:04.2]} 58... Kd2 {[%clk 0:00:07.5]} 59. h4 {[%clk
0:00:03.4]} 59... c3 {[%clk 0:00:08]} 60. g4 {[%clk 0:00:03.6]} 60... c2 {[%clk
0:00:08.6]} 61. Bxc2 {[%clk 0:00:03.9]} 61... Kxc2 {[%clk 0:00:09.5]} 62. h5
{[%clk 0:00:04.5]} 62... g5 {[%clk 0:00:08.6]} 63. Ke4 {[%clk 0:00:04.5]} 63...
Kc3 {[%clk 0:00:09]} 64. Kf5 {[%clk 0:00:04.9]} 64... Bd8 {[%clk 0:00:08.6]} 65.
b6 {[%clk 0:00:04.5]} 65... Bxb6 {[%clk 0:00:08.8]} 66. Kxg5 {[%clk 0:00:04.8]}
66... Be3+ {[%clk 0:00:09.4]} 67. Kf6 {[%clk 0:00:04.8]} 67... h6 {[%clk
0:00:08.5]} 68. Kf5 {[%clk 0:00:03.6]} 68... Kd3 {[%clk 0:00:08.9]} 69. g5
{[%clk 0:00:03.2]} 69... Bxg5 {[%clk 0:00:05.6]} 70. Kg4 {[%clk 0:00:03.4]}
70... Ke2 {[%clk 0:00:06.5]} 71. Kh3 {[%clk 0:00:04.3]} 71... Kf1 {[%clk
0:00:06.6]} 72. Kh2 {[%clk 0:00:05.2]} 72... Be3 {[%clk 0:00:07.1]} 73. Kh1
{[%clk 0:00:06.1]} 73... Ke2 {[%clk 0:00:07.5]} 74. Kh2 {[%clk 0:00:07]} 74...
Kd3 {[%clk 0:00:07.5]} 75. Kh1 {[%clk 0:00:07.9]} 75... Ke4 {[%clk 0:00:06.5]}
76. Kh2 {[%clk 0:00:08.8]} 76... Kf5 {[%clk 0:00:06.3]} 77. Kh1 {[%clk
0:00:09.7]} 77... Kg4 {[%clk 0:00:06.2]} 78. Kh2 {[%clk 0:00:10.6]} 78... Kxh5
{[%clk 0:00:07.1]} 79. Kh1 {[%clk 0:00:11.5]} 79... Kg4 {[%clk 0:00:07.6]} 80.
Kh2 {[%clk 0:00:12.4]} 80... Bf4+ {[%clk 0:00:08.5]} 81. Kh1 {[%clk 0:00:13.3]}
81... Kh4 {[%clk 0:00:09]} 82. Kg1 {[%clk 0:00:13.7]} 82... Kh3 {[%clk
0:00:09.9]} 83. Kh1 {[%clk 0:00:14.6]} 83... h5 {[%clk 0:00:10.8]} 84. Kg1
{[%clk 0:00:15.5]} 84... h4 {[%clk 0:00:11.6]} 85. Kh1 {[%clk 0:00:16.4]} 85...
Be3 {[%clk 0:00:12.5]} 1/2-1/2

[Event "Early-Titled-Tuesday-Blitz-April-16-2024"]
[Site "Chess.com"]
[Date "2024.04.16"]
[Round "5"]
[White "Herzog2012"]
[Black "ValentunHulka"]
[Result "0-1"]
[WhiteElo "2532"]
[BlackElo "2797"]
[TimeControl "180+1"]
[EndTime "8:57:58 PDT"]
[Termination "ValentunHulka won on time"]

1. e4 {[%clk 0:03:00.9]} 1... c5 {[%clk 0:03:00.1]} 2. Nf3 {[%clk 0:02:59.8]}
2... Nc6 {[%clk 0:03:00.7]} 3. d4 {[%clk 0:02:59.5]} 3... cxd4 {[%clk
0:03:00.9]} 4. Nxd4 {[%clk 0:03:00.4]} 4... Nf6 {[%clk 0:03:01.6]} 5. Nc3 {[%clk
0:03:01]} 5... e5 {[%clk 0:03:02.3]} 6. Ndb5 {[%clk 0:03:00.7]} 6... d6 {[%clk
0:03:03]} 7. Nd5 {[%clk 0:02:59.4]} 7... Nxd5 {[%clk 0:03:01.4]} 8. exd5 {[%clk
0:03:00.3]} 8... Ne7 {[%clk 0:03:01.7]} 9. c3 {[%clk 0:02:59.1]} 9... Nf5 {[%clk
0:02:59.4]} 10. a4 {[%clk 0:02:57.6]} 10... g6 {[%clk 0:02:59.1]} 11. Bd3 {[%clk
0:02:51.3]} 11... Bg7 {[%clk 0:02:59.4]} 12. O-O {[%clk 0:02:51]} 12... O-O
{[%clk 0:02:59.7]} 13. f4 {[%clk 0:02:46.8]} 13... a6 {[%clk 0:02:50]} 14. Na3
{[%clk 0:02:42.4]} 14... exf4 {[%clk 0:02:31]} 15. Bxf4 {[%clk 0:02:34.4]} 15...
Qb6+ {[%clk 0:02:31.1]} 16. Rf2 {[%clk 0:02:28.1]} 16... Ne3 {[%clk 0:02:21.8]}
17. Bxe3 {[%clk 0:02:16]} 17... Qxe3 {[%clk 0:02:21.8]} 18. Nc4 {[%clk
0:02:12.5]} 18... Qc5 {[%clk 0:02:21.2]} 19. b4 {[%clk 0:01:56.9]} 19... Qc7
{[%clk 0:02:19.8]} 20. Qd2 {[%clk 0:01:53.2]} 20... Bd7 {[%clk 0:02:16]} 21. a5
{[%clk 0:01:07.9]} 21... Bb5 {[%clk 0:02:06.5]} 22. Nb6 {[%clk 0:01:05.1]} 22...
Qxc3 {[%clk 0:02:06.3]} 23. Qxc3 {[%clk 0:00:41.7]} 23... Bxc3 {[%clk
0:02:07.2]} 24. Rc1 {[%clk 0:00:42.2]} 24... Bxb4 {[%clk 0:01:16.8]} 25. Bxb5
{[%clk 0:00:33.9]} 25... axb5 {[%clk 0:01:13.1]} 26. Nxa8 {[%clk 0:00:33.2]}
26... Rxa8 {[%clk 0:01:14]} 27. Kf1 {[%clk 0:00:30.1]} 27... Bc5 {[%clk
0:00:51.5]} 28. Ra2 {[%clk 0:00:29.3]} 28... b4 {[%clk 0:00:52.1]} 29. Rb1
{[%clk 0:00:26.6]} 29... Ra6 {[%clk 0:00:52.1]} 30. Raa1 {[%clk 0:00:13.9]}
30... Bd4 {[%clk 0:00:48.5]} 31. Ra4 {[%clk 0:00:10]} 31... Bc3 {[%clk 0:00:48]}
32. Ke2 {[%clk 0:00:09.5]} 32... b6 {[%clk 0:00:38.1]} 33. axb6 {[%clk
0:00:09.4]} 33... Rxb6 {[%clk 0:00:39]} 34. Kd3 {[%clk 0:00:06]} 34... Rb5
{[%clk 0:00:39.4]} 35. Ke4 {[%clk 0:00:04.6]} 35... f5+ {[%clk 0:00:39.9]} 36.
Kf3 {[%clk 0:00:03.8]} 36... Rxd5 {[%clk 0:00:36.5]} 37. Ra8+ {[%clk 0:00:03.9]}
37... Kg7 {[%clk 0:00:35.7]} 38. Ra7+ {[%clk 0:00:04.5]} 38... Kh6 {[%clk
0:00:35.3]} 39. Rc1 {[%clk 0:00:03.8]} 39... Rd3+ {[%clk 0:00:34.3]} 40. Ke2
{[%clk 0:00:03.8]} 40... Rd2+ {[%clk 0:00:34.6]} 41. Kf3 {[%clk 0:00:04.1]}
41... d5 {[%clk 0:00:30.6]} 42. Rd7 {[%clk 0:00:03.5]} 42... d4 {[%clk
0:00:30.6]} 43. Rd8 {[%clk 0:00:01.3]} 43... b3 {[%clk 0:00:30.5]} 44. Rb8
{[%clk 0:00:01.1]} 44... b2 {[%clk 0:00:30.9]} 45. Rb1 {[%clk 0:00:01.6]} 45...
Rc2 {[%clk 0:00:28.9]} 46. h4 {[%clk 0:00:01.9]} 46... Rc1 {[%clk 0:00:23.1]}
47. R8xb2 {[%clk 0:00:02]} 47... Bxb2 {[%clk 0:00:24]} 48. Rxb2 {[%clk
0:00:02.8]} 48... Rc3+ {[%clk 0:00:23.5]} 49. Kf4 {[%clk 0:00:02.4]} 49... Kh5
{[%clk 0:00:20.5]} 50. Rb7 {[%clk 0:00:02.4]} 50... h6 {[%clk 0:00:20.5]} 51. g3
{[%clk 0:00:02.8]} 51... Rc1 {[%clk 0:00:18.8]} 52. Rd7 {[%clk 0:00:02.9]} 52...
Rf1+ {[%clk 0:00:18.7]} 53. Ke5 {[%clk 0:00:03]} 53... Re1+ {[%clk 0:00:18.6]}
54. Kf4 {[%clk 0:00:03.1]} 54... Re4+ {[%clk 0:00:18.8]} 55. Kf3 {[%clk
0:00:03.4]} 55... g5 {[%clk 0:00:13.4]} 56. hxg5 {[%clk 0:00:03.7]} 56... hxg5
{[%clk 0:00:14.3]} 57. Rd6 {[%clk 0:00:04.1]} 57... g4+ {[%clk 0:00:13.7]} 58.
Kf2 {[%clk 0:00:01.8]} 58... Kg5 {[%clk 0:00:13.9]} 59. Kg2 {[%clk 0:00:01.3]}
59... Re2+ {[%clk 0:00:13.6]} 60. Kf1 {[%clk 0:00:01.4]} 60... Rd2 {[%clk
0:00:14.5]} 61. Ke1 {[%clk 0:00:01.6]} 61... Rd3 {[%clk 0:00:15.1]} 62. Kf2
{[%clk 0:00:02]} 62... Rf3+ {[%clk 0:00:14.5]} 63. Kg2 {[%clk 0:00:02.2]} 63...
d3 {[%clk 0:00:15.4]} 64. Rd8 {[%clk 0:00:02.3]} 64... Re3 {[%clk 0:00:15.7]}
65. Rd6 {[%clk 0:00:02.5]} 65... Re2+ {[%clk 0:00:15.8]} 66. Kf1 {[%clk
0:00:03.1]} 66... Rd2 {[%clk 0:00:14.8]} 67. Ke1 {[%clk 0:00:03.1]} 67... Re2+
{[%clk 0:00:14.9]} 68. Kf1 {[%clk 0:00:03.7]} 68... Re3 {[%clk 0:00:15.5]} 69.
Kf2 {[%clk 0:00:01.9]} 69... Rf3+ {[%clk 0:00:10.9]} 70. Kg2 {[%clk 0:00:02.2]}
70... Kh5 {[%clk 0:00:08.4]} 71. Rd5 {[%clk 0:00:01.7]} 71... Kg6 {[%clk
0:00:08.9]} 72. Rd6+ {[%clk 0:00:01.9]} 72... Kf7 {[%clk 0:00:09.6]} 73. Kg1
{[%clk 0:00:02.1]} 73... Ke7 {[%clk 0:00:09.9]} 74. Rd5 {[%clk 0:00:01.8]} 74...
Ke6 {[%clk 0:00:10.4]} 75. Rd4 {[%clk 0:00:02]} 75... Ke5 {[%clk 0:00:10.9]} 76.
Rd8 {[%clk 0:00:02]} 76... Ke4 {[%clk 0:00:11.4]} 0-1

[Event "Early-Titled-Tuesday-Blitz-April-16-2024"]
[Site "Chess.com"]
[Date "2024.04.16"]
[Round "5"]
[White "Josgar05"]
[Black "sathvikadiga"]
[Result "1-0"]
[WhiteElo "2447"]
[BlackElo "2580"]
[TimeControl "180+1"]
[EndTime "8:58:02 PDT"]
[Termination "Josgar05 won by checkmate"]

1. Nf3 {[%clk 0:02:46.6]} 1... Nf6 {[%clk 0:02:59.5]} 2. b3 {[%clk 0:02:46.7]}
2... g6 {[%clk 0:03:00.4]} 3. Bb2 {[%clk 0:02:47]} 3... Bg7 {[%clk 0:03:01.3]}
4. g3 {[%clk 0:02:47.7]} 4... O-O {[%clk 0:03:01.9]} 5. c4 {[%clk 0:02:48.2]}
5... d6 {[%clk 0:03:02.6]} 6. d4 {[%clk 0:02:48.1]} 6... Nc6 {[%clk 0:03:03.3]}
7. Bg2 {[%clk 0:02:48.1]} 7... e5 {[%clk 0:03:03.3]} 8. dxe5 {[%clk 0:02:48.9]}
8... Nd7 {[%clk 0:03:03.9]} 9. O-O {[%clk 0:02:49.1]} 9... Ndxe5 {[%clk
0:03:04.1]} 10. Nc3 {[%clk 0:02:48.4]} 10... Nxf3+ {[%clk 0:03:01.3]} 11. Bxf3
{[%clk 0:02:49.3]} 11... Bh3 {[%clk 0:03:01.6]} 12. Re1 {[%clk 0:02:49.2]} 12...
Qd7 {[%clk 0:02:59.5]} 13. Qd2 {[%clk 0:02:49.4]} 13... Rfe8 {[%clk 0:02:55.6]}
14. Rad1 {[%clk 0:02:48.7]} 14... Rad8 {[%clk 0:02:55.3]} 15. Nd5 {[%clk
0:02:45.5]} 15... Ne5 {[%clk 0:02:54.9]} 16. Bh1 {[%clk 0:02:45.1]} 16... c6
{[%clk 0:02:53.6]} 17. Nc3 {[%clk 0:02:39.7]} 17... Ng4 {[%clk 0:02:36.3]} 18.
Ne4 {[%clk 0:02:35.6]} 18... Qf5 {[%clk 0:02:02.2]} 19. Bxg7 {[%clk 0:02:26.8]}
19... Kxg7 {[%clk 0:02:03.1]} 20. Qd4+ {[%clk 0:02:26.8]} 20... Kg8 {[%clk
0:01:09.8]} 21. f3 {[%clk 0:02:25.9]} 21... Ne5 {[%clk 0:00:49.9]} 22. Nxd6
{[%clk 0:01:59.7]} 22... Qe6 {[%clk 0:00:44.6]} 23. c5 {[%clk 0:01:56.6]} 23...
Rd7 {[%clk 0:00:15.9]} 24. Qh4 {[%clk 0:01:53.9]} 24... Red8 {[%clk 0:00:15.9]}
25. g4 {[%clk 0:01:53.9]} 25... Bxg4 {[%clk 0:00:14.4]} 26. fxg4 {[%clk
0:01:53.8]} 26... b6 {[%clk 0:00:13.7]} 27. Rf1 {[%clk 0:01:45.7]} 27... bxc5
{[%clk 0:00:09.6]} 28. Rf6 {[%clk 0:01:45.6]} 28... Qxg4+ {[%clk 0:00:09.3]} 29.
Qxg4 {[%clk 0:01:43.8]} 29... Nxg4 {[%clk 0:00:10.2]} 30. Rf4 {[%clk 0:01:44]}
30... Ne5 {[%clk 0:00:09.2]} 31. Re4 {[%clk 0:01:35.8]} 31... f6 {[%clk
0:00:09.3]} 32. Ra4 {[%clk 0:01:21]} 32... Rxd6 {[%clk 0:00:09.8]} 33. Rxd6
{[%clk 0:01:21.2]} 33... Rxd6 {[%clk 0:00:10.7]} 34. Rxa7 {[%clk 0:01:21.8]}
34... Rd1+ {[%clk 0:00:11.4]} 35. Kg2 {[%clk 0:01:22.2]} 35... Ra1 {[%clk
0:00:11.8]} 36. h3 {[%clk 0:01:18.1]} 36... h5 {[%clk 0:00:09.4]} 37. Kh2 {[%clk
0:01:18]} 37... Re1 {[%clk 0:00:09.9]} 38. Bf3 {[%clk 0:01:09.9]} 38... h4
{[%clk 0:00:10.2]} 39. Kg2 {[%clk 0:01:08.3]} 39... Ra1 {[%clk 0:00:09.1]} 40.
a4 {[%clk 0:01:06.8]} 40... f5 {[%clk 0:00:09]} 41. Ra5 {[%clk 0:01:03.4]} 41...
Rc1 {[%clk 0:00:06.8]} 42. b4 {[%clk 0:01:02.5]} 42... Nc4 {[%clk 0:00:03.8]}
43. Rxc5 {[%clk 0:01:02.5]} 43... Ne3+ {[%clk 0:00:04.3]} 44. Kf2 {[%clk
0:01:01.5]} 44... Nd1+ {[%clk 0:00:04.7]} 45. Ke1 {[%clk 0:01:00.6]} 45... Rxc5
{[%clk 0:00:04.9]} 46. bxc5 {[%clk 0:01:01]} 46... Nc3 {[%clk 0:00:05.4]} 47. a5
{[%clk 0:01:01.4]} 47... Nb5 {[%clk 0:00:05.8]} 48. Bxc6 {[%clk 0:01:00.7]}
48... Na7 {[%clk 0:00:06.4]} 49. Be8 {[%clk 0:00:58.8]} 49... Kf8 {[%clk
0:00:06.3]} 50. Bxg6 {[%clk 0:00:58.8]} 50... f4 {[%clk 0:00:06.3]} 51. Be4
{[%clk 0:00:58.8]} 51... Ke7 {[%clk 0:00:06.3]} 52. Kf2 {[%clk 0:00:59.4]} 52...
Ke6 {[%clk 0:00:06.4]} 53. Kf3 {[%clk 0:00:59.8]} 53... Ke5 {[%clk 0:00:07.1]}
54. Bb7 {[%clk 0:01:00.5]} 54... Nb5 {[%clk 0:00:06.6]} 55. a6 {[%clk
0:01:00.7]} 55... Nd4+ {[%clk 0:00:06.7]} 56. Kf2 {[%clk 0:01:01]} 56... Nb5
{[%clk 0:00:07.1]} 57. Bc6 {[%clk 0:00:58.3]} 57... Na7 {[%clk 0:00:06.5]} 58.
Bd7 {[%clk 0:00:58.9]} 58... Kd5 {[%clk 0:00:06.7]} 59. Kf3 {[%clk 0:00:57.2]}
59... Kxc5 {[%clk 0:00:06.2]} 60. Kxf4 {[%clk 0:00:57.8]} 60... Kb6 {[%clk
0:00:06.8]} 61. Kg5 {[%clk 0:00:55.6]} 61... Kxa6 {[%clk 0:00:07.3]} 62. Kxh4
{[%clk 0:00:55.8]} 62... Kb6 {[%clk 0:00:08]} 63. Kg5 {[%clk 0:00:56]} 63... Kc7
{[%clk 0:00:07.6]} 64. Ba4 {[%clk 0:00:52]} 64... Kd6 {[%clk 0:00:07.8]} 65. Kg6
{[%clk 0:00:50.5]} 65... Ke7 {[%clk 0:00:07.6]} 66. Kg7 {[%clk 0:00:51.1]} 66...
Nc8 {[%clk 0:00:08.1]} 67. h4 {[%clk 0:00:51.2]} 67... Nd6 {[%clk 0:00:08.6]}
68. h5 {[%clk 0:00:46.5]} 68... Nf5+ {[%clk 0:00:09]} 69. Kg6 {[%clk 0:00:46.9]}
69... Nh4+ {[%clk 0:00:04.3]} 70. Kg5 {[%clk 0:00:45.6]} 70... Ng2 {[%clk
0:00:04.9]} 71. Bc6 {[%clk 0:00:42.6]} 71... Ne3 {[%clk 0:00:04.5]} 72. h6
{[%clk 0:00:43]} 72... Kf7 {[%clk 0:00:04.1]} 73. Be4 {[%clk 0:00:41.1]} 73...
Nd1 {[%clk 0:00:03.9]} 74. Bc2 {[%clk 0:00:39.7]} 74... Nc3 {[%clk 0:00:04.3]}
75. Bb3+ {[%clk 0:00:39.8]} 75... Kf8 {[%clk 0:00:04]} 76. Kg6 {[%clk
0:00:38.5]} 76... Nxe2 {[%clk 0:00:04.5]} 77. h7 {[%clk 0:00:33.1]} 77... Nf4+
{[%clk 0:00:04.6]} 78. Kh6 {[%clk 0:00:33.6]} 78... Ke7 {[%clk 0:00:04.5]} 79.
h8=Q {[%clk 0:00:32.8]} 79... Nd3 {[%clk 0:00:05.2]} 80. Qh7+ {[%clk 0:00:31.9]}
80... Kd6 {[%clk 0:00:05]} 81. Qxd3+ {[%clk 0:00:31.9]} 81... Kc5 {[%clk
0:00:05.9]} 82. Qc4+ {[%clk 0:00:32.1]} 82... Kb6 {[%clk 0:00:06.8]} 83. Kg5
{[%clk 0:00:32.6]} 83... Kb7 {[%clk 0:00:07.2]} 84. Qc5 {[%clk 0:00:33.1]} 84...
Ka6 {[%clk 0:00:07.4]} 85. Qb4 {[%clk 0:00:33.2]} 85... Ka7 {[%clk 0:00:08.3]}
86. Qb5 {[%clk 0:00:33.8]} 86... Ka8 {[%clk 0:00:08.5]} 87. Kf6 {[%clk
0:00:34.7]} 87... Ka7 {[%clk 0:00:09.4]} 88. Ke6 {[%clk 0:00:35.6]} 88... Ka8
{[%clk 0:00:10]} 89. Kd7 {[%clk 0:00:36.5]} 89... Ka7 {[%clk 0:00:10.8]} 90. Kc7
{[%clk 0:00:37.4]} 90... Ka8 {[%clk 0:00:11.2]} 91. Qa6# {[%clk 0:00:37.5]} 1-0